[Event "*** Titled Tuesday 3|2 Blitz"]
[Site "Chess.com"]
[Date "2017.06.06"]
[Round "2"]
[White "Rock700chess"]
[Black "GrigorGrigorov"]
[Result "0-1"]
[WhiteElo "2292"]
[BlackElo "2626"]
[TimeControl "180+2"]
[EndTime "14:15:24 PDT"]
[Termination "GrigorGrigorov won by resignation"]

1. e4 {[%clk 0:03:01.9]} 1... c5 {[%clk 0:03:00.1]} 2. Nf3 {[%clk 0:03:02.5]}
2... d6 {[%clk 0:03:01.3]} 3. d4 {[%clk 0:03:03.8]} 3... cxd4 {[%clk 0:03:02.4]}
4. Nxd4 {[%clk 0:03:05.7]} 4... Nf6 {[%clk 0:03:03.7]} 5. f3 {[%clk 0:03:07.2]}
5... e5 {[%clk 0:03:02.6]} 6. Nb3 {[%clk 0:03:07.7]} 6... a5 {[%clk 0:03:03.2]}
7. c4 {[%clk 0:03:05.8]} 7... a4 {[%clk 0:03:02.8]} 8. N3d2 {[%clk 0:03:05.7]}
8... Be7 {[%clk 0:03:02.8]} 9. Nc3 {[%clk 0:03:05.8]} 9... Qa5 {[%clk
0:02:59.3]} 10. Rb1 {[%clk 0:02:41.5]} 10... O-O {[%clk 0:02:56.2]} 11. Be2
{[%clk 0:02:40.9]} 11... Bd8 {[%clk 0:02:54.5]} 12. O-O {[%clk 0:02:35.9]} 12...
Bb6+ {[%clk 0:02:55]} 13. Kh1 {[%clk 0:02:37.5]} 13... Nc6 {[%clk 0:02:52.1]}
14. Nd5 {[%clk 0:02:30.8]} 14... Bd8 {[%clk 0:02:20.4]} 15. Re1 {[%clk
0:01:56.5]} 15... Nd4 {[%clk 0:02:17.4]} 16. Nf1 {[%clk 0:01:54]} 16... Nxd5
{[%clk 0:02:15.2]} 17. cxd5 {[%clk 0:01:52.3]} 17... f5 {[%clk 0:02:03.5]} 18.
Be3 {[%clk 0:01:37.4]} 18... Bb6 {[%clk 0:01:55.5]} 19. Rc1 {[%clk 0:01:29]}
19... Bd7 {[%clk 0:01:54.4]} 20. Nd2 {[%clk 0:01:18.6]} 20... Qa7 {[%clk
0:01:31.5]} 21. Nc4 {[%clk 0:01:17.3]} 21... Bc5 {[%clk 0:01:31.3]} 22. Bg1
{[%clk 0:00:48.9]} 22... b5 {[%clk 0:01:26.7]} 23. Ne3 {[%clk 0:00:50]} 23... f4
{[%clk 0:01:20.1]} 24. Nc2 {[%clk 0:00:49.4]} 24... Nxc2 {[%clk 0:01:05.3]} 25.
Bxc5 {[%clk 0:00:45.8]} 25... Qxc5 {[%clk 0:01:03.7]} 26. Rxc2 {[%clk
0:00:46.6]} 26... Qb6 {[%clk 0:01:02.6]} 27. Qd2 {[%clk 0:00:44.7]} 27... Rf6
{[%clk 0:00:54.6]} 28. Rec1 {[%clk 0:00:46.1]} 28... Rh6 {[%clk 0:00:54.3]} 29.
Bf1 {[%clk 0:00:24.8]} 29... g5 {[%clk 0:00:30.3]} 30. Qf2 {[%clk 0:00:25.8]}
30... Qd8 {[%clk 0:00:27.2]} 31. Rc7 {[%clk 0:00:26.5]} 31... Rg6 {[%clk
0:00:22.3]} 32. Qb6 {[%clk 0:00:23]} 32... g4 {[%clk 0:00:17.3]} 33. Qb7 {[%clk
0:00:19.1]} 33... Rg7 {[%clk 0:00:15.4]} 34. Bxb5 {[%clk 0:00:18.2]} 34... Rb8
{[%clk 0:00:10.6]} 35. Rxd7 {[%clk 0:00:19.5]} 35... Rxb7 {[%clk 0:00:07.9]} 36.
Rxd8+ {[%clk 0:00:20.1]} 36... Kf7 {[%clk 0:00:09.8]} 37. Bd7 {[%clk 0:00:16.1]}
37... Ke7 {[%clk 0:00:09.6]} 38. Bc6 {[%clk 0:00:07.4]} 38... Kxd8 {[%clk
0:00:07.3]} 39. Bxb7 {[%clk 0:00:08.6]} 39... Rxb7 {[%clk 0:00:08.7]} 40. Rc2
{[%clk 0:00:09.2]} 40... Rb4 {[%clk 0:00:08]} 41. Kg1 {[%clk 0:00:08.5]} 41...
Rd4 {[%clk 0:00:08.4]} 42. Kf2 {[%clk 0:00:09.6]} 42... h5 {[%clk 0:00:09.2]}
43. b3 {[%clk 0:00:09.8]} 43... axb3 {[%clk 0:00:07.7]} 44. axb3 {[%clk
0:00:11.7]} 44... Rd3 {[%clk 0:00:08.5]} 45. Rb2 {[%clk 0:00:12.1]} 45... Kc7
{[%clk 0:00:09.7]} 46. Ke2 {[%clk 0:00:12.7]} 46... Re3+ {[%clk 0:00:10.2]} 47.
Kf2 {[%clk 0:00:12.7]} 47... Kb6 {[%clk 0:00:10.9]} 48. g3 {[%clk 0:00:14.2]}
48... Rxf3+ {[%clk 0:00:11.1]} 49. Kg2 {[%clk 0:00:15.1]} 49... Re3 {[%clk
0:00:11.6]} 50. b4 {[%clk 0:00:16.1]} 50... Rxe4 {[%clk 0:00:11.3]} 51. gxf4
{[%clk 0:00:17.4]} 51... exf4 {[%clk 0:00:12]} 52. Rc2 {[%clk 0:00:18.9]} 52...
Rxb4 {[%clk 0:00:05.1]} 53. Rc6+ {[%clk 0:00:19.8]} 53... Kb5 {[%clk 0:00:06.6]}
54. Rxd6 {[%clk 0:00:21.7]} 54... Rb2+ {[%clk 0:00:07.7]} 55. Kf1 {[%clk
0:00:23.3]} 55... Rxh2 {[%clk 0:00:07.4]} 56. Rd8 {[%clk 0:00:22]} 56... Kc5
{[%clk 0:00:07.8]} 57. d6 {[%clk 0:00:23.5]} 57... Kc6 {[%clk 0:00:08.2]} 58. d7
{[%clk 0:00:23.1]} 58... Kc7 {[%clk 0:00:08.5]} 59. Rf8 {[%clk 0:00:23.9]} 59...
Kxd7 {[%clk 0:00:09.3]} 60. Rxf4 {[%clk 0:00:25.1]} 60... g3 {[%clk 0:00:10]}
61. Kg1 {[%clk 0:00:25.9]} 61... h4 {[%clk 0:00:10.7]} 62. Re4 {[%clk
0:00:27.3]} 62... Kd6 {[%clk 0:00:11.7]} 63. Re8 {[%clk 0:00:25.5]} 63... Kd5
{[%clk 0:00:11.5]} 64. Re1 {[%clk 0:00:26.2]} 64... Rd2 {[%clk 0:00:10.6]} 65.
Re8 {[%clk 0:00:26.6]} 65... Rc2 {[%clk 0:00:07]} 66. Rh8 {[%clk 0:00:25.3]}
66... Rh2 {[%clk 0:00:07.7]} 67. Re8 {[%clk 0:00:26]} 67... Kd4 {[%clk
0:00:07.7]} 68. Re7 {[%clk 0:00:25.9]} 68... Kd3 {[%clk 0:00:08.5]} 69. Re6
{[%clk 0:00:26.9]} 69... Re2 {[%clk 0:00:07.8]} 70. Rh6 {[%clk 0:00:25.8]} 70...
Re4 {[%clk 0:00:07.6]} 71. Kg2 {[%clk 0:00:25.7]} 71... Ke3 {[%clk 0:00:08.7]}
72. Rf6 {[%clk 0:00:22.9]} 72... Rf4 {[%clk 0:00:09.2]} 73. Re6+ {[%clk
0:00:23.8]} 73... Kd4 {[%clk 0:00:09.2]} 74. Re8 {[%clk 0:00:22.5]} 74... Rf2+
{[%clk 0:00:09]} 75. Kg1 {[%clk 0:00:19.3]} 75... h3 {[%clk 0:00:09.3]} 76. Rd8+
{[%clk 0:00:17.4]} 76... Ke5 {[%clk 0:00:09.8]} 77. Re8+ {[%clk 0:00:18.7]}
77... Kd6 {[%clk 0:00:10.9]} 78. Rd8+ {[%clk 0:00:19.7]} 78... Ke7 {[%clk
0:00:11.6]} 79. Rg8 {[%clk 0:00:15.7]} 79... h2+ {[%clk 0:00:11.6]} 80. Kh1
{[%clk 0:00:16.4]} 80... Rf1+ {[%clk 0:00:12.6]} 81. Kg2 {[%clk 0:00:16.9]}
81... h1=Q+ {[%clk 0:00:13.5]} 0-1

[Event "*** Titled Tuesday 3|2 Blitz"]
[Site "Chess.com"]
[Date "2017.06.06"]
[Round "2"]
[White "proxy6"]
[Black "ViIIagra"]
[Result "1/2-1/2"]
[WhiteElo "2303"]
[BlackElo "2590"]
[TimeControl "180+2"]
[EndTime "14:15:40 PDT"]
[Termination "Game drawn by agreement"]

1. e4 {[%clk 0:03:02]} 1... c5 {[%clk 0:02:59.3]} 2. Nf3 {[%clk 0:03:02.7]} 2...
d6 {[%clk 0:03:00.6]} 3. d4 {[%clk 0:03:03.8]} 3... cxd4 {[%clk 0:03:02.5]} 4.
Nxd4 {[%clk 0:03:05.7]} 4... Nf6 {[%clk 0:03:04.2]} 5. Nc3 {[%clk 0:03:07]} 5...
Nc6 {[%clk 0:03:06]} 6. Bg5 {[%clk 0:03:04.7]} 6... e6 {[%clk 0:03:06.7]} 7. Qd2
{[%clk 0:03:04.8]} 7... a6 {[%clk 0:03:07.8]} 8. O-O-O {[%clk 0:03:04]} 8... h6
{[%clk 0:03:09.1]} 9. Be3 {[%clk 0:03:02.4]} 9... Be7 {[%clk 0:03:08.4]} 10. f3
{[%clk 0:03:03]} 10... Nxd4 {[%clk 0:03:09.2]} 11. Bxd4 {[%clk 0:03:03.1]} 11...
e5 {[%clk 0:03:10.9]} 12. Be3 {[%clk 0:03:02.5]} 12... Be6 {[%clk 0:03:12.5]}
13. Kb1 {[%clk 0:03:00.8]} 13... Rc8 {[%clk 0:03:09.1]} 14. g4 {[%clk
0:03:01.5]} 14... Qa5 {[%clk 0:03:09.8]} 15. a3 {[%clk 0:02:52.7]} 15... b5
{[%clk 0:03:04.2]} 16. Nd5 {[%clk 0:02:36]} 16... Qxd2 {[%clk 0:03:02.8]} 17.
Rxd2 {[%clk 0:02:37.9]} 17... Bxd5 {[%clk 0:03:02.8]} 18. exd5 {[%clk
0:02:38.6]} 18... Nd7 {[%clk 0:03:04.7]} 19. Bd3 {[%clk 0:02:36.3]} 19... Bg5
{[%clk 0:03:00.3]} 20. Re1 {[%clk 0:02:34]} 20... Bxe3 {[%clk 0:02:48.8]} 21.
Rxe3 {[%clk 0:02:33.6]} 21... g6 {[%clk 0:02:50.5]} 22. f4 {[%clk 0:02:31.3]}
22... Kd8 {[%clk 0:02:49.7]} 23. Rf2 {[%clk 0:02:23.1]} 23... exf4 {[%clk
0:02:48.6]} 24. Rxf4 {[%clk 0:02:23.1]} 24... Ne5 {[%clk 0:02:50.3]} 25. Rxe5
{[%clk 0:02:11]} 25... dxe5 {[%clk 0:02:45.5]} 26. Rxf7 {[%clk 0:02:12.4]} 26...
Rc7 {[%clk 0:02:26.9]} 27. Rf6 {[%clk 0:02:12.4]} 27... Ra7 {[%clk 0:02:24.5]}
28. Bxg6 {[%clk 0:02:09.2]} 28... Rg8 {[%clk 0:02:13.6]} 29. Bf5 {[%clk
0:02:04.1]} 29... h5 {[%clk 0:02:14.8]} 30. h3 {[%clk 0:02:04]} 30... hxg4
{[%clk 0:02:15.6]} 31. hxg4 {[%clk 0:02:05.9]} 31... e4 {[%clk 0:02:16.8]} 32.
Re6 {[%clk 0:01:57.3]} 32... Re8 {[%clk 0:02:16]} 33. Bxe4 {[%clk 0:01:52.7]}
33... Rxe6 {[%clk 0:02:13.3]} 34. dxe6 {[%clk 0:01:54.6]} 34... Ke7 {[%clk
0:02:13.6]} 35. Bf5 {[%clk 0:01:55.4]} 35... Rc7 {[%clk 0:01:57.4]} 36. Kc1
{[%clk 0:01:53.6]} 36... Kf6 {[%clk 0:01:58.4]} 37. Kd2 {[%clk 0:01:51.7]} 37...
Ke5 {[%clk 0:01:59.6]} 38. Ke3 {[%clk 0:01:52.3]} 38... a5 {[%clk 0:01:55.4]}
39. c3 {[%clk 0:01:46.6]} 39... Ra7 {[%clk 0:01:46.7]} 40. b3 {[%clk 0:01:37.3]}
40... Rc7 {[%clk 0:01:47.1]} 41. Kd3 {[%clk 0:01:34.8]} 41... Rc8 {[%clk
0:01:48.3]} 42. c4 {[%clk 0:01:34.7]} 42... b4 {[%clk 0:01:35.6]} 43. axb4
{[%clk 0:01:18.7]} 43... axb4 {[%clk 0:01:37.5]} 44. c5 {[%clk 0:00:26.7]} 44...
Kd5 {[%clk 0:01:33.5]} 45. e7 {[%clk 0:00:27.1]} 45... Re8 {[%clk 0:01:31.5]}
46. Bd7 {[%clk 0:00:24.1]} 46... Rxe7 {[%clk 0:01:27.9]} 47. c6 {[%clk
0:00:25.2]} 47... Kc5 {[%clk 0:01:21]} 48. g5 {[%clk 0:00:21.3]} 48... Rg7
{[%clk 0:01:21.4]} 49. g6 {[%clk 0:00:15.7]} 49... Kd6 {[%clk 0:01:11.2]} 50.
Be8 {[%clk 0:00:16.3]} 50... Rc7 {[%clk 0:00:29]} 51. Kc4 {[%clk 0:00:14.5]}
51... Rc8 {[%clk 0:00:28]} 52. Bd7 {[%clk 0:00:13.7]} 52... Rg8 {[%clk
0:00:28.6]} 53. Kxb4 {[%clk 0:00:09.4]} 53... Rxg6 {[%clk 0:00:29.7]} 54. Ka5
{[%clk 0:00:09.1]} 54... Kc7 {[%clk 0:00:22.6]} 55. b4 {[%clk 0:00:09.7]} 55...
Rg8 {[%clk 0:00:24.2]} 56. b5 {[%clk 0:00:10]} 56... Ra8+ {[%clk 0:00:25.7]} 57.
Kb4 {[%clk 0:00:11]} 57... Kb6 {[%clk 0:00:26.9]} 58. Be6 {[%clk 0:00:05.8]}
58... Re8 {[%clk 0:00:25.5]} 59. Bd7 {[%clk 0:00:03.7]} 59... Re5 {[%clk
0:00:23.8]} 60. Kc4 {[%clk 0:00:04.1]} 60... Rc5+ {[%clk 0:00:24.9]} 61. Kd4
{[%clk 0:00:05.5]} 61... Rg5 {[%clk 0:00:22.9]} 62. Kc4 {[%clk 0:00:05]} 62...
Rxb5 {[%clk 0:00:22.2]} 63. Kd4 {[%clk 0:00:05.8]} 63... Rg5 {[%clk 0:00:22.2]}
64. Ke4 {[%clk 0:00:06.9]} 64... Kc7 {[%clk 0:00:23.1]} 65. Kf4 {[%clk
0:00:07.7]} 65... Rc5 {[%clk 0:00:24.7]} 66. Ke4 {[%clk 0:00:08.6]} 66... Kd6
{[%clk 0:00:26.5]} 67. Kd4 {[%clk 0:00:09]} 67... Rc1 {[%clk 0:00:28]} 68. Ke4
{[%clk 0:00:09.6]} 68... Rc4+ {[%clk 0:00:29.5]} 69. Kf5 {[%clk 0:00:09.9]}
69... Rd4 {[%clk 0:00:25.8]} 70. Be8 {[%clk 0:00:08.6]} 70... Rd5+ {[%clk
0:00:20.1]} 71. Kf4 {[%clk 0:00:09.3]} 71... Rd4+ {[%clk 0:00:18.6]} 72. Kf5
{[%clk 0:00:10]} 72... Rd1 {[%clk 0:00:18.8]} 73. Bd7 {[%clk 0:00:10.2]} 73...
Rd2 {[%clk 0:00:20.3]} 74. Ke4 {[%clk 0:00:09.8]} 74... Rd1 {[%clk 0:00:21.2]}
75. Kf5 {[%clk 0:00:10.7]} 75... Re1 {[%clk 0:00:22.7]} 76. Kf4 {[%clk
0:00:10.7]} 76... Re7 {[%clk 0:00:21.4]} 77. Kf5 {[%clk 0:00:11]} 77... Re1
{[%clk 0:00:22.1]} 78. Kf4 {[%clk 0:00:11.7]} 78... Rc1 {[%clk 0:00:23.7]} 79.
Ke4 {[%clk 0:00:11.4]} 79... Rd1 {[%clk 0:00:23.7]} 80. Kf5 {[%clk 0:00:10.7]}
80... Ke7 {[%clk 0:00:23.9]} 81. Ke5 {[%clk 0:00:11]} 81... Ra1 {[%clk
0:00:24.4]} 82. Kd5 {[%clk 0:00:11.5]} 82... Ra5+ {[%clk 0:00:25.6]} 83. Ke4
{[%clk 0:00:10.7]} 83... Kd6 {[%clk 0:00:27.5]} 84. Kf4 {[%clk 0:00:11.3]} 84...
Ra4+ {[%clk 0:00:28.3]} 85. Kf5 {[%clk 0:00:12.1]} 1/2-1/2

[Event "*** Titled Tuesday 3|2 Blitz"]
[Site "Chess.com"]
[Date "2017.06.06"]
[Round "2"]
[White "cukus"]
[Black "igorkovalenko"]
[Result "1/2-1/2"]
[WhiteElo "2442"]
[BlackElo "2633"]
[TimeControl "180+2"]
[EndTime "14:16:05 PDT"]
[Termination "Game drawn by repetition"]

1. d4 {[%clk 0:03:02]} 1... Nf6 {[%clk 0:02:58.2]} 2. Nf3 {[%clk 0:03:02.8]}
2... d5 {[%clk 0:02:58.8]} 3. Bf4 {[%clk 0:03:01.5]} 3... e6 {[%clk 0:03:00]} 4.
e3 {[%clk 0:02:56.6]} 4... Nh5 {[%clk 0:03:00.5]} 5. Bg5 {[%clk 0:02:41.4]} 5...
Be7 {[%clk 0:02:59]} 6. Bxe7 {[%clk 0:02:37.8]} 6... Qxe7 {[%clk 0:03:00.9]} 7.
c4 {[%clk 0:02:39.7]} 7... c6 {[%clk 0:03:01.7]} 8. Nc3 {[%clk 0:02:33.2]} 8...
Nd7 {[%clk 0:03:02.7]} 9. Be2 {[%clk 0:02:30.3]} 9... Nhf6 {[%clk 0:03:03.4]}
10. O-O {[%clk 0:02:28.8]} 10... O-O {[%clk 0:03:04.3]} 11. Qc2 {[%clk
0:02:26.7]} 11... Rd8 {[%clk 0:03:04.4]} 12. Rac1 {[%clk 0:02:20.6]} 12... b6
{[%clk 0:02:50.4]} 13. cxd5 {[%clk 0:02:18.4]} 13... exd5 {[%clk 0:02:50.3]} 14.
Rfd1 {[%clk 0:02:08.4]} 14... Bb7 {[%clk 0:02:50.4]} 15. Bd3 {[%clk 0:02:00]}
15... c5 {[%clk 0:02:49.9]} 16. Bf5 {[%clk 0:01:54.5]} 16... Nf8 {[%clk
0:02:48.3]} 17. dxc5 {[%clk 0:01:50.6]} 17... bxc5 {[%clk 0:02:49.1]} 18. Na4
{[%clk 0:01:51.9]} 18... g6 {[%clk 0:02:46.4]} 19. Qxc5 {[%clk 0:01:35.9]} 19...
Qe8 {[%clk 0:02:40.9]} 20. Bc2 {[%clk 0:01:28.5]} 20... Ne6 {[%clk 0:02:41.8]}
21. Qb4 {[%clk 0:01:22.3]} 21... Rab8 {[%clk 0:02:38.6]} 22. Qh4 {[%clk
0:01:21.1]} 22... Ne4 {[%clk 0:02:38.9]} 23. Bb3 {[%clk 0:01:13.7]} 23... Ba8
{[%clk 0:02:32]} 24. Nc3 {[%clk 0:01:12]} 24... Nxc3 {[%clk 0:02:18.2]} 25. Rxc3
{[%clk 0:01:11.5]} 25... d4 {[%clk 0:02:17.2]} 26. exd4 {[%clk 0:01:06.9]} 26...
Bxf3 {[%clk 0:02:17.6]} 27. Rxf3 {[%clk 0:01:06.1]} 27... Rb4 {[%clk 0:02:00.7]}
28. Bxe6 {[%clk 0:00:57.6]} 28... fxe6 {[%clk 0:02:02.6]} 29. b3 {[%clk
0:00:54.8]} 29... e5 {[%clk 0:01:57.5]} 30. Qg5 {[%clk 0:00:44.7]} 30... Rbxd4
{[%clk 0:01:55.9]} 31. Re1 {[%clk 0:00:40.6]} 31... R8d5 {[%clk 0:01:38.5]} 32.
Rfe3 {[%clk 0:00:38.4]} 32... Rd2 {[%clk 0:01:39.5]} 33. h3 {[%clk 0:00:36.2]}
33... Qf8 {[%clk 0:01:27.6]} 34. Qg3 {[%clk 0:00:32.9]} 34... Qf4 {[%clk
0:01:14.9]} 35. Qxf4 {[%clk 0:00:29]} 35... exf4 {[%clk 0:01:16]} 36. Re7 {[%clk
0:00:28]} 36... Rd7 {[%clk 0:01:09.8]} 37. Rxd7 {[%clk 0:00:28.2]} 37... Rxd7
{[%clk 0:01:11.7]} 38. Kf1 {[%clk 0:00:23.9]} 38... Kf7 {[%clk 0:01:09.3]} 39.
Re4 {[%clk 0:00:15.6]} 39... g5 {[%clk 0:01:10.7]} 40. Ke2 {[%clk 0:00:14.9]}
40... Kf6 {[%clk 0:01:12]} 41. Ra4 {[%clk 0:00:16]} 41... Rc7 {[%clk 0:01:07.5]}
42. Kd3 {[%clk 0:00:16.4]} 42... Rd7+ {[%clk 0:01:05.6]} 43. Ke2 {[%clk
0:00:17.9]} 43... Rc7 {[%clk 0:01:06.4]} 44. Rc4 {[%clk 0:00:19.2]} 44... Rd7
{[%clk 0:01:05.7]} 45. Rc5 {[%clk 0:00:20.3]} 45... h6 {[%clk 0:01:06.4]} 46. b4
{[%clk 0:00:21.2]} 46... Rd6 {[%clk 0:01:05.1]} 47. a3 {[%clk 0:00:21.5]} 47...
a6 {[%clk 0:01:06.4]} 48. a4 {[%clk 0:00:21.2]} 48... Kg6 {[%clk 0:00:59.2]} 49.
b5 {[%clk 0:00:22.4]} 49... axb5 {[%clk 0:01:00.3]} 50. axb5 {[%clk 0:00:23.6]}
50... Kh5 {[%clk 0:01:01.6]} 51. Rc1 {[%clk 0:00:22.3]} 51... Rb6 {[%clk
0:00:49.7]} 52. Rb1 {[%clk 0:00:23.5]} 52... g4 {[%clk 0:00:47.3]} 53. hxg4+
{[%clk 0:00:23.2]} 53... Kxg4 {[%clk 0:00:49.2]} 54. Kd3 {[%clk 0:00:23.7]}
54... f3 {[%clk 0:00:49.3]} 55. gxf3+ {[%clk 0:00:20.4]} 55... Kxf3 {[%clk
0:00:51.2]} 56. Kc4 {[%clk 0:00:16.5]} 56... Kxf2 {[%clk 0:00:49.1]} 57. Kc5
{[%clk 0:00:17.8]} 57... Rb8 {[%clk 0:00:49.5]} 58. Rh1 {[%clk 0:00:16.2]} 58...
Rh8 {[%clk 0:00:50.3]} 59. b6 {[%clk 0:00:16.6]} 59... h5 {[%clk 0:00:51]} 60.
b7 {[%clk 0:00:18.1]} 60... h4 {[%clk 0:00:49.4]} 61. Rxh4 {[%clk 0:00:14]}
61... Rxh4 {[%clk 0:00:51.3]} 62. b8=Q {[%clk 0:00:14.9]} 62... Re4 {[%clk
0:00:45.9]} 63. Kd5 {[%clk 0:00:15.4]} 63... Rg4 {[%clk 0:00:45.9]} 64. Qb3
{[%clk 0:00:14.4]} 64... Ke2 {[%clk 0:00:45.6]} 65. Ke5 {[%clk 0:00:14.7]} 65...
Kf2 {[%clk 0:00:41.5]} 66. Qd3 {[%clk 0:00:15.1]} 66... Rh4 {[%clk 0:00:41]} 67.
Kf5 {[%clk 0:00:15.5]} 67... Rh7 {[%clk 0:00:41.2]} 68. Qd2+ {[%clk 0:00:14.4]}
68... Kf3 {[%clk 0:00:41.9]} 69. Qc3+ {[%clk 0:00:13]} 69... Kf2 {[%clk
0:00:42.9]} 70. Kg4 {[%clk 0:00:12.9]} 70... Rd7 {[%clk 0:00:33.3]} 71. Qc2+
{[%clk 0:00:10.9]} 71... Ke3 {[%clk 0:00:33.6]} 72. Qc5+ {[%clk 0:00:08.9]}
72... Rd4+ {[%clk 0:00:30]} 73. Kf5 {[%clk 0:00:10]} 73... Kd3 {[%clk
0:00:30.7]} 74. Ke5 {[%clk 0:00:11.1]} 74... Re4+ {[%clk 0:00:29.3]} 75. Kd5
{[%clk 0:00:11.4]} 75... Rf4 {[%clk 0:00:30.1]} 76. Qa3+ {[%clk 0:00:12.4]}
76... Ke2 {[%clk 0:00:29.4]} 77. Ke5 {[%clk 0:00:13.3]} 77... Rg4 {[%clk
0:00:30.1]} 78. Qc3 {[%clk 0:00:12.8]} 78... Kf2 {[%clk 0:00:30.4]} 79. Kf5
{[%clk 0:00:13.6]} 79... Rh4 {[%clk 0:00:31.5]} 80. Qd3 {[%clk 0:00:13.9]} 80...
Rh7 {[%clk 0:00:32.2]} 81. Qc3 {[%clk 0:00:11]} 81... Rh4 {[%clk 0:00:28.5]} 82.
Kg5 {[%clk 0:00:12]} 82... Re4 {[%clk 0:00:27.6]} 83. Qd3 {[%clk 0:00:09]} 83...
Re8 {[%clk 0:00:16.8]} 84. Qc3 {[%clk 0:00:05.8]} 84... Re4 {[%clk 0:00:17]} 85.
Kf5 {[%clk 0:00:07.2]} 85... Rh4 {[%clk 0:00:17.4]} 1/2-1/2